bitfinex-derivatives/quotes_BTCF0:USTF0_20251109
["timestamp","ask_amount","ask_price","bid_price","bid_amount"]
[1762715795271,0.1530079,104280.0,104270.0,0.00010189]
[1762715795479,0.59043435,104280.0,104270.0,0.00010189]
[1762715795677,0.73430499,104280.0,104270.0,0.00010189]
[1762715796074,0.73430499,104280.0,104270.0,0.02173189]
[1762715796380,0.73430499,104280.0,104270.0,0.04412189]
[1762715796983,0.73630499,104280.0,104270.0,0.00010189]
[1762715797185,0.81393144,104280.0,104270.0,0.00010189]
[1762715797390,0.73730499,104280.0,104270.0,0.00010189]
[1762715797684,0.81393144,104280.0,104270.0,0.00010189]
[1762715798480,0.1413563,104260.0,104250.0,0.10835034]
[1762715798785,0.3609661,104260.0,104250.0,0.10835034]
[1762715799884,0.73196799,104260.0,104250.0,0.07266034]
[1762715800074,0.73196799,104260.0,104250.0,0.05303034]
[1762715800982,0.73196799,104260.0,104250.0,0.07466034]
[1762715801183,0.1447755,104250.0,104240.0,0.05103034]
[1762715801384,0.91640195,104250.0,104240.0,0.07266034]
[1762715801686,1.05968439,104250.0,104240.0,0.07266034]
[1762715802785,1.05968439,104250.0,104240.0,0.09505034]
[1762715803188,1.05968439,104250.0,104240.0,0.05303034]
[1762715803388,1.06168439,104250.0,104240.0,0.05303034]
[1762715804985,1.06168439,104250.0,104240.0,0.002]
[1762715805579,0.095964,104230.0,104220.0,0.06799765]
[1762715805891,0.0959732,104220.0,104210.0,0.48624765]
[1762715806085,0.17259965,104220.0,104210.0,0.48624765]
[1762715806291,0.31745305,104220.0,104210.0,0.12544765]
[1762715806694,0.67825305,104220.0,104210.0,0.12544765]
[1762715807293,0.68325305,104220.0,104210.0,0.12644765]
[1762715807595,0.68925305,104220.0,104210.0,0.12644765]
[1762715808189,0.6126266,104220.0,104210.0,0.12644765]
[1762715808398,0.2518266,104220.0,104210.0,0.12644765]
[1762715808693,0.2518266,104220.0,104210.0,0.48724765]
[1762715809083,0.2518266,104220.0,104210.0,0.12644765]
[1762715809290,0.2518266,104220.0,104210.0,0.48724765]
[1762715809594,0.2518266,104220.0,104210.0,0.58323005]
[1762715809793,0.2428266,104220.0,104210.0,0.58323005]
[1762715810896,0.23324247,104220.0,104210.0,0.58323005]
[1762715811091,0.23324247,104220.0,104210.0,0.60162147]
[1762715811092,0.002,104220.0,104210.0,0.60162147]
[1762715811296,0.002,104220.0,104210.0,1.26961912]
[1762715811491,0.18245039,104230.0,104220.0,0.1543232]
[1762715811800,0.24077845,104230.0,104220.0,0.58318577]
[1762715811990,0.32716752,104230.0,104220.0,0.58318577]
[1762715812297,0.32716752,104230.0,104220.0,0.48721257]
[1762715812790,0.32916752,104230.0,104220.0,0.58318577]
[1762715813097,0.33016752,104230.0,104220.0,0.58518577]
[1762715813490,0.33016752,104230.0,104220.0,0.12841257]
[1762715815795,0.69096752,104230.0,104220.0,0.12841257]
[1762715815991,0.69096752,104230.0,104220.0,0.06035]
[1762715816196,0.69096752,104230.0,104220.0,0.12841257]
[1762715817397,0.7125216,104230.0,104220.0,0.06035]
[1762715819297,0.69096752,104230.0,104220.0,0.06035]
[1762715819693,0.69096752,104230.0,104220.0,0.1563233]
[1762715821196,0.69096752,104230.0,104220.0,0.06035]
[1762715821798,0.77735659,104230.0,104220.0,0.06035]
[1762715822797,0.69096752,104230.0,104220.0,0.06035]
[1762715823792,1.11155659,104230.0,104220.0,0.03754]
[1762715824101,1.11155659,104230.0,104220.0,0.002]
[1762715824301,1.11155659,104230.0,104220.0,0.01534]
[1762715824803,1.11155659,104230.0,104220.0,0.0382]
[1762715825598,1.02516752,104230.0,104220.0,0.06124]
[1762715825789,0.60457845,104230.0,104220.0,0.06124]
[1762715825995,0.69096752,104230.0,104220.0,0.06124]
[1762715826194,0.69096752,104230.0,104220.0,0.1572133]
[1762715830094,0.23420352,104230.0,104220.0,0.5180133]
[1762715830295,0.14781445,104230.0,104220.0,0.5180133]
[1762715831906,0.00309412,104230.0,104220.0,0.60440237]
[1762715832802,0.00309412,104230.0,104220.0,0.84428237]
[1762715833003,0.00014346,104240.0,104230.0,0.24159317]
[1762715833198,0.4911974,104270.0,104260.0,0.1551765]
[1762715833502,0.24065083,104260.0,104250.0,0.01334]
[1762715833699,0.0959457,104250.0,104240.0,0.0362]
[1762715833899,0.65104326,104250.0,104240.0,0.0362]
[1762715834101,0.0959549,104240.0,104230.0,0.05938346]
[1762715834311,0.56466339,104240.0,104230.0,0.05938346]
[1762715834504,0.70966705,104240.0,104230.0,0.06138346]
[1762715834900,0.70966705,104240.0,104230.0,0.15734756]
[1762715835298,0.70966705,104240.0,104230.0,0.06238346]
[1762715835299,0.71066705,104240.0,104230.0,0.06238346]
[1762715836812,0.71066705,104240.0,104230.0,0.15834756]
[1762715838212,0.71066705,104240.0,104230.0,0.06238346]
[1762715838409,0.52832308,104240.0,104230.0,0.15834756]
[1762715838614,0.52832308,104240.0,104230.0,0.51914756]
[1762715838615,0.14600366,104240.0,104230.0,0.51914756]
[1762715839015,0.002,104240.0,104230.0,1.44537663]
[1762715839713,0.002,104240.0,104230.0,1.20553663]
[1762715839905,0.002,104240.0,104230.0,1.44537663]
[1762715840105,0.002,104240.0,104230.0,1.20553663]
[1762715840513,0.065349,104250.0,104240.0,0.1551949]
[1762715840709,0.08688335,104250.0,104240.0,0.5159949]
[1762715840908,0.23171898,104250.0,104240.0,0.5159949]
[1762715841610,0.23471898,104250.0,104240.0,0.5169949]
[1762715841806,0.33266468,104250.0,104240.0,0.5179949]
[1762715842201,0.23671898,104250.0,104240.0,0.5179949]
[1762715843111,0.17136998,104250.0,104240.0,0.5179949]
[1762715843310,0.25775905,104250.0,104240.0,0.5179949]
[1762715843505,0.25575905,104250.0,104240.0,0.5189949]
[1762715843705,0.25375905,104250.0,104240.0,0.5179949]
[1762715843905,0.25475905,104250.0,104240.0,0.5189949]
[1762715844401,0.35070475,104250.0,104240.0,0.5189949]
[1762715844902,0.35070475,104250.0,104240.0,0.42304]
[1762715845107,0.35070475,104250.0,104240.0,0.518995]
[1762715845607,0.0969457,104250.0,104240.0,0.518995]
[1762715845815,0.49134696,104260.0,104250.0,0.05924]
[1762715846214,0.63607432,104260.0,104250.0,0.05924]
[1762715846602,0.72246339,104260.0,104250.0,0.05924]
[1762715846808,0.72446339,104260.0,104250.0,0.06024]
[1762715847010,0.72446339,104260.0,104250.0,0.06124]
[1762715847213,0.72546339,104260.0,104250.0,0.06124]
[1762715848516,0.70242319,104260.0,104250.0,0.06124]
[1762715854010,0.70342319,104260.0,104250.0,0.06124]
[1762715854515,0.70242319,104260.0,104250.0,0.06024]
[1762715854810,0.70342319,104260.0,104250.0,0.06124]
[1762715855210,0.70342319,104260.0,104250.0,0.0382]
[1762715855917,0.70142319,104260.0,104250.0,0.0382]
[1762715856516,0.678382,104260.0,104250.0,0.0382]
[1762715857317,0.678382,104260.0,104250.0,0.05985]
[1762715857722,0.69988274,104260.0,104250.0,0.05985]
[1762715860113,0.75110275,104260.0,104250.0,0.05985]
[1762715860812,0.69988274,104260.0,104250.0,0.05985]
[1762715861413,0.75110275,104260.0,104250.0,0.05985]
[1762715863224,0.66471368,104260.0,104250.0,0.05985]
[1762715863423,0.71135387,104260.0,104250.0,0.05985]
[1762715865129,0.71135387,104260.0,104250.0,0.03796]
[1762715865726,0.71135387,104260.0,104250.0,0.05985]
[1762715869925,0.61541717,104260.0,104250.0,0.1557956]
[1762715870126,0.1682281,104260.0,104250.0,0.60298467]
[1762715870330,0.2641645,104260.0,104250.0,0.60298467]
[1762715870535,0.2641645,104260.0,104250.0,0.5165956]
[1762715871931,0.8250303,104280.0,104260.0,0.07743]
[1762715872131,0.84635181,104280.0,104260.0,0.07743]
[1762715872333,0.99025981,104280.0,104260.0,0.07743]
[1762715872540,1.21412945,104280.0,104260.0,0.3608]
[1762715872734,1.10294022,104280.0,104260.0,0.3608]
[1762715873136,1.10908368,104280.0,104260.0,0.43937346]
[1762715873342,1.11208368,104280.0,104260.0,0.44037346]
[1762715873543,0.0959331,104270.0,104260.0,0.41142346]
[1762715873731,0.0959331,104270.0,104260.0,0.36294346]
[1762715873932,0.24031561,104270.0,104260.0,0.36294346]
[1762715874739,0.24331561,104270.0,104260.0,0.36294346]
[1762715875848,0.38228561,104270.0,104260.0,0.36294346]
[1762715877137,0.38228561,104270.0,104260.0,0.39242346]
[1762715877432,0.38228561,104270.0,104260.0,0.46075346]
[1762715880645,0.34471561,104270.0,104260.0,0.49940346]
[1762715881150,0.67847561,104270.0,104260.0,0.49940346]
[1762715881339,0.34471561,104270.0,104260.0,0.49940346]
[1762715881541,0.67847561,104270.0,104260.0,0.49940346]
[1762715881741,0.34471561,104270.0,104260.0,0.49940346]
[1762715882037,0.67847561,104270.0,104260.0,0.49940346]
[1762715882540,0.34471561,104270.0,104260.0,0.59533976]
[1762715882740,0.67847561,104270.0,104260.0,0.59533976]
[1762715882945,0.42982696,104280.0,104270.0,0.13646]
[1762715883135,0.45646696,104280.0,104270.0,0.49726]
[1762715883342,0.60093788,104280.0,104270.0,0.49726]
[1762715883949,0.28824787,104280.0,104270.0,0.49726]
[1762715884144,0.62696787,104280.0,104270.0,0.49826]
[1762715884342,0.29324787,104280.0,104270.0,0.49826]
[1762715884543,0.62696787,104280.0,104270.0,0.49826]
[1762715884748,0.62996787,104280.0,104270.0,0.49926]
[1762715884948,0.29624237,104280.0,104270.0,0.5951872]
[1762715885148,0.17232688,104280.0,104270.0,1.1951872]
[1762715885444,0.17735651,104310.0,104300.0,0.2323595]
[1762715885650,0.24650511,104320.0,104310.0,0.2323503]
[1762715885851,0.24650511,104320.0,104310.0,0.49726]
[1762715886050,0.33948556,104320.0,104310.0,0.49726]
[1762715886452,0.39070557,104320.0,104310.0,0.49726]
[1762715887151,0.33948556,104320.0,104310.0,0.49726]
[1762715887347,0.33948556,104320.0,104310.0,0.50326]
[1762715887646,0.34048556,104320.0,104310.0,0.50326]
[1762715887951,0.39170557,104320.0,104310.0,0.50526]
[1762715888152,0.39070557,104320.0,104310.0,0.49926]
[1762715888353,0.39170557,104320.0,104310.0,0.50326]
[1762715889154,0.34048556,104320.0,104310.0,0.50326]
[1762715890051,0.34048556,104320.0,104310.0,0.10381]
[1762715890052,0.71387556,104320.0,104310.0,0.10381]
[1762715890844,0.34048556,104320.0,104310.0,0.50326]
[1762715891052,0.34048556,104320.0,104310.0,0.5991504]
[1762715891350,0.34048556,104320.0,104310.0,0.50326]
[1762715891351,0.27132556,104320.0,104310.0,0.50326]
[1762715891560,0.27132556,104320.0,104310.0,0.5991504]
[1762715891943,0.17544046,104320.0,104310.0,0.5991504]
[1762715892140,0.24108166,104320.0,104310.0,0.5991504]
[1762715893346,0.14520046,104320.0,104310.0,0.5991504]
[1762715893554,0.24108166,104320.0,104310.0,0.5991504]
[1762715894055,0.14520046,104320.0,104310.0,0.5991504]
[1762715894643,0.17544046,104320.0,104310.0,0.5991504]
[1762715894958,0.37726156,104320.0,104310.0,0.39628]
[1762715895152,0.8253238,104340.0,104320.0,0.03865]
[1762715895348,0.8253238,104340.0,104320.0,0.13646]
[1762715895547,0.96843737,104340.0,104320.0,0.13646]
[1762715895742,0.93333737,104340.0,104320.0,0.13646]
[1762715896147,0.93348083,104340.0,104320.0,0.13646]
[1762715896452,0.93648083,104340.0,104320.0,0.13746]
[1762715896758,0.93648083,104340.0,104330.0,0.06813]
[1762715897550,0.93748083,104340.0,104330.0,0.06813]
[1762715897757,0.93448083,104340.0,104330.0,0.06813]
[1762715897958,0.93648083,104340.0,104330.0,0.06913]
[1762715898150,0.93748083,104340.0,104330.0,0.06913]
[1762715901560,0.93748083,104340.0,104330.0,0.13746]
[1762715902060,1.53748083,104340.0,104330.0,0.13746]
[1762715903061,0.93748083,104340.0,104330.0,0.13746]
[1762715903453,0.57668083,104340.0,104330.0,0.13746]
[1762715903853,0.24312083,104340.0,104330.0,0.13746]
[1762715904151,0.24312083,104340.0,104330.0,0.49826]
[1762715905856,0.32588083,104340.0,104330.0,0.49826]
[1762715907863,0.28450083,104340.0,104330.0,0.49826]
[1762715908066,0.32588083,104340.0,104330.0,0.49826]
[1762715908258,0.32588083,104340.0,104330.0,0.594132]
[1762715909057,0.87561913,104360.0,104350.0,0.05264]
[1762715909261,0.84134601,104360.0,104350.0,0.05264]
[1762715909466,0.98427451,104360.0,104350.0,0.05264]
[1762715910156,0.98827451,104360.0,104350.0,0.05364]
[1762715910762,0.98827451,104360.0,104350.0,0.21168]
[1762715911167,0.99427451,104360.0,104350.0,0.21268]
[1762715913261,1.01145263,104360.0,104350.0,0.21268]
[1762715914669,0.9946529,104360.0,104350.0,0.21268]
[1762715915069,0.6338529,104360.0,104350.0,0.21268]
[1762715916875,0.0958434,104370.0,104350.0,0.21268]
[1762715917062,0.4291634,104370.0,104360.0,0.3608]
[1762715917373,0.57310358,104370.0,104360.0,0.57148]
[1762715918169,0.58110358,104370.0,104360.0,0.57148]
[1762715918967,0.58110358,104370.0,104360.0,0.57348]
[1762715919278,0.58510358,104370.0,104360.0,0.57448]
[1762715921571,0.25178358,104370.0,104360.0,0.57448]
[1762715921970,0.25178358,104370.0,104360.0,0.3638]
[1762715922277,0.4749609,104380.0,104360.0,0.57448]
[1762715922575,0.62890875,104380.0,104360.0,0.57448]
[1762715923374,0.63390875,104380.0,104360.0,0.57148]
[1762715923575,0.64190875,104380.0,104360.0,0.57248]
[1762715924278,0.63590875,104380.0,104360.0,0.57248]
[1762715925279,0.63090875,104380.0,104360.0,0.57248]
[1762715925477,0.63090875,104380.0,104360.0,0.57348]
[1762715926981,0.63090875,104380.0,104370.0,0.21299]
[1762715927183,0.62135262,104380.0,104370.0,0.21299]
[1762715927381,0.62135262,104380.0,104370.0,0.34694]
[1762715927982,0.61935262,104380.0,104370.0,0.34994]
[1762715928279,0.62035262,104380.0,104370.0,0.003]
[1762715928479,0.62035262,104380.0,104370.0,0.004]
[1762715928874,0.7064353,104380.0,104370.0,0.004]
[1762715930876,0.71769571,104380.0,104370.0,0.004]
[1762715932696,0.71769571,104380.0,104370.0,0.21699]
[1762715933994,0.71769571,104380.0,104370.0,0.08705]
[1762715934395,0.71769571,104380.0,104370.0,0.21699]
[1762715936989,0.71769571,104380.0,104370.0,0.004]
[1762715937186,1.07849571,104380.0,104370.0,0.004]
[1762715938082,1.35260412,104410.0,104370.0,0.3648]
[1762715938083,1.71340412,104410.0,104370.0,0.3648]
[1762715938286,0.28415819,104380.0,104370.0,0.3648]
[1762715938591,0.14054773,104380.0,104370.0,0.3648]
[1762715938790,0.2851661,104380.0,104370.0,0.3648]
[1762715938990,0.29650636,104380.0,104370.0,0.3648]
[1762715939495,0.29650636,104380.0,104370.0,0.3618]
[1762715939797,0.29650636,104380.0,104370.0,0.3628]
[1762715940301,0.34246063,104380.0,104370.0,0.70916]
[1762715940493,0.26314503,104380.0,104370.0,0.71016]
[1762715941196,0.33212037,104380.0,104370.0,0.71016]
[1762715941389,0.2184234,104380.0,104370.0,0.71016]
[1762715941589,0.27014404,104380.0,104370.0,0.71016]
[1762715941796,0.2184234,104380.0,104370.0,0.71016]
[1762715942296,0.28739874,104380.0,104370.0,0.71016]
[1762715942693,0.2184234,104380.0,104370.0,0.71016]
[1762715942995,0.21459371,104380.0,104370.0,0.8059953]
[1762715943201,0.19732538,104380.0,104370.0,0.8059953]
[1762715943785,0.29315148,104380.0,104370.0,0.71016]
[1762715943989,0.19732538,104380.0,104370.0,0.8059953]
[1762715944391,0.29315148,104380.0,104370.0,0.8059953]
[1762715944592,0.29315148,104380.0,104370.0,0.71016]
[1762715945804,0.29315148,104380.0,104370.0,0.8059953]
[1762715946201,0.29315148,104380.0,104370.0,0.71016]
[1762715947703,0.31041981,104380.0,104370.0,0.71016]
[1762715948302,0.28740328,104380.0,104370.0,0.71016]
[1762715948704,0.63065681,104410.0,104380.0,0.34736]
[1762715948905,0.15165521,104410.0,104400.0,0.3608]
[1762715949200,0.29482386,104410.0,104400.0,0.3608]
[1762715949807,0.30082386,104410.0,104400.0,0.3608]
[1762715950607,0.30382386,104410.0,104400.0,0.3608]
[1762715951707,0.30382386,104410.0,104400.0,0.3618]
[1762715953909,0.30382386,104410.0,104400.0,0.44185]
[1762715954306,0.30382386,104410.0,104400.0,0.5723]
[1762715955310,0.30382386,104410.0,104400.0,0.44185]
[1762715955713,0.30382386,104410.0,104400.0,0.5723]
[1762715955914,0.30382386,104410.0,104400.0,0.70916]
[1762715957806,0.38994421,104410.0,104400.0,0.70916]
[1762715959819,0.29162499,104420.0,104400.0,0.70916]
[1762715960021,0.33774815,104420.0,104410.0,0.3608]
[1762715960223,0.48115063,104420.0,104410.0,0.33139985]
[1762715961020,0.49219519,104420.0,104410.0,0.33139985]
[1762715961225,0.37162503,104420.0,104410.0,0.33139985]
[1762715961412,0.73342503,104420.0,104400.0,0.70930346]
[1762715961613,0.73342503,104420.0,104400.0,0.70830346]
[1762715961812,0.73742503,104420.0,104410.0,0.001]
[1762715962221,0.73742503,104420.0,104400.0,0.70830346]
[1762715962409,0.73342503,104420.0,104400.0,0.70830346]
[1762715962609,0.73742503,104420.0,104400.0,0.70930346]
[1762715965920,0.4276879,104410.0,104400.0,0.70930346]
[1762715966325,0.57220424,104410.0,104400.0,0.70930346]
[1762715967130,0.57220424,104410.0,104400.0,0.70830346]
[1762715967521,0.57220424,104410.0,104400.0,0.70930346]
[1762715967828,0.47033706,104430.0,104410.0,0.14117]
[1762715968130,0.220652,104420.0,104410.0,0.62774]
[1762715968530,0.07620704,104420.0,104410.0,0.62774]
[1762715968930,0.21938067,104420.0,104410.0,0.62774]
[1762715969128,0.1893871,104420.0,104410.0,0.62774]
[1762715969632,0.1893871,104420.0,104410.0,0.86553]
[1762715969831,0.20038119,104420.0,104410.0,0.86553]
[1762715970032,0.20038119,104420.0,104410.0,0.86653]
[1762715970727,0.20338119,104420.0,104410.0,0.85094706]
[1762715971035,0.00338119,104420.0,104410.0,0.85094706]
[1762715971336,0.14570675,104420.0,104410.0,0.85094706]
[1762715971534,0.15676804,104420.0,104410.0,0.85094706]
[1762715972127,0.20258593,104420.0,104410.0,0.85094706]
[1762715972323,0.20258593,104420.0,104410.0,0.8626645]
[1762715974333,0.3758719,104420.0,104410.0,0.8626645]
[1762715975130,0.33005401,104420.0,104410.0,0.8626645]
[1762715977738,0.45066454,104420.0,104410.0,0.8626645]
[1762715978529,0.27737857,104420.0,104410.0,0.8626645]
[1762715979135,0.27737857,104420.0,104410.0,0.3579345]
[1762715979438,0.27737857,104420.0,104410.0,0.8626645]
[1762715980538,0.24292436,104420.0,104410.0,0.8626645]
[1762715981132,0.15676804,104420.0,104410.0,0.8626645]
[1762715981843,0.21462941,104420.0,104410.0,0.8626645]
[1762715982147,0.23186307,104420.0,104410.0,0.84708314]
[1762715982645,0.14570675,104420.0,104410.0,0.84708314]
[1762715984436,0.10699639,104430.0,104420.0,0.50473]
[1762715984833,0.10699639,104430.0,104420.0,0.86553]
[1762715984834,0.25047988,104430.0,104420.0,0.86553]
[1762715985230,0.3366362,104430.0,104420.0,0.86553]
[1762715985436,0.38582,104450.0,104440.0,0.50473]
[1762715985744,0.5297842,104450.0,104440.0,0.84371928]
[1762715987240,0.5297842,104450.0,104440.0,0.84471928]
[1762715987946,0.54112917,104450.0,104440.0,0.84471928]
[1762715992146,0.54112917,104450.0,104440.0,0.82914029]
[1762715996549,0.62717424,104450.0,104440.0,0.82914029]
[1762715997648,0.62717424,104450.0,104440.0,1.18994029]
[1762715999152,0.54112917,104450.0,104440.0,1.18994029]
[1762716002144,0.54112917,104450.0,104440.0,1.17436316]
[1762716003251,0.15530917,104450.0,104440.0,1.17436316]
[1762716003549,0.6438542,104450.0,104440.0,1.17436316]
[1762716003943,0.65638765,104450.0,104440.0,1.17436316]
[1762716005849,1.11297765,104450.0,104440.0,0.001]
[1762716006051,0.57724,104440.0,104430.0,0.98616346]
[1762716006455,0.64443512,104440.0,104430.0,0.98616346]
[1762716007253,0.64443512,104440.0,104430.0,0.98916346]
[1762716007453,0.64443512,104440.0,104430.0,0.99116346]
[1762716023362,1.08258512,104440.0,104430.0,0.36105999]
[1762716023559,0.49989,104420.0,104410.0,0.62522]
[1762716023758,0.56880459,104420.0,104410.0,0.62522]
[1762716023959,0.71180287,104420.0,104410.0,0.62522]
[1762716025058,0.71180287,104420.0,104410.0,0.62822]
[1762716025861,0.71280287,104420.0,104410.0,0.63322]
[1762716026565,0.71180287,104420.0,104410.0,0.62922]
[1762716027263,0.72903152,104420.0,104410.0,0.62922]
[1762716027968,0.64288828,104420.0,104410.0,0.62922]
[1762716028568,0.71781627,104420.0,104410.0,0.62922]
[1762716028764,0.71781627,104420.0,104410.0,0.62522]
[1762716029264,0.71781627,104420.0,104410.0,0.48405]
[1762716029265,1.20654627,104420.0,104410.0,0.48405]
[1762716029472,1.29268951,104420.0,104410.0,0.48405]
[1762716030667,1.29468951,104420.0,104410.0,0.48405]
[1762716030967,1.29568951,104420.0,104410.0,0.48405]
[1762716033976,0.56918,104410.0,104400.0,0.63293346]
[1762716034175,0.99879154,104410.0,104400.0,0.48824346]
[1762716034368,1.14192748,104410.0,104400.0,0.48824346]
[1762716034777,1.07311594,104410.0,104400.0,0.48824346]
[1762716035272,1.14190854,104410.0,104400.0,0.48824346]
[1762716035778,1.07311594,104410.0,104400.0,0.48824346]
[1762716036481,1.14189419,104410.0,104400.0,0.48824346]
[1762716036673,1.14389419,104410.0,104400.0,0.48824346]
[1762716037978,1.14489419,104410.0,104400.0,0.48824346]
[1762716044792,1.14489419,104410.0,104400.0,0.62152346]
[1762716045089,1.14489419,104410.0,104400.0,0.48824346]
[1762716047887,1.16225918,104410.0,104400.0,0.48824346]
[1762716048082,1.16225918,104410.0,104400.0,0.47265886]
[1762716048884,1.06646918,104410.0,104400.0,0.60417886]
[1762716049191,0.23227918,104410.0,104400.0,0.96497886]
[1762716049388,0.64568918,104410.0,104400.0,0.96497886]
[1762716050092,0.64468918,104410.0,104400.0,0.96497886]
[1762716050492,0.69037652,104410.0,104400.0,0.96497886]
[1762716050888,0.68837652,104410.0,104400.0,0.96497886]
[1762716051494,0.60223328,104410.0,104400.0,0.96497886]
[1762716053093,0.68837652,104410.0,104400.0,0.96497886]
[1762716054693,0.25771584,104410.0,104400.0,0.96497886]
[1762716054897,0.2120285,104410.0,104400.0,0.96497886]
[1762716055198,0.08614324,104420.0,104410.0,0.56363]
[1762716055394,0.46111063,104430.0,104420.0,0.21743]
[1762716055598,0.75405753,104430.0,104420.0,0.54181538]
[1762716055896,0.89823315,104430.0,104420.0,0.54181538]
[1762716056297,1.01883308,104430.0,104420.0,0.54181538]
[1762716056494,1.01983308,104430.0,104420.0,0.54181538]
[1762716056696,0.97401894,104430.0,104420.0,0.54181538]
[1762716057298,1.46316894,104430.0,104420.0,0.28084871]
[1762716057494,1.34256901,104430.0,104420.0,0.28084871]
[1762716057699,1.34256901,104430.0,104420.0,0.26526656]
[1762716057902,0.53817,104420.0,104410.0,0.20322346]
[1762716058098,0.94456882,104420.0,104410.0,0.40878346]
[1762716058301,1.08757972,104420.0,104410.0,0.00014346]
[1762716058503,1.08757972,104420.0,104410.0,0.40878346]
[1762716058694,1.26086569,104420.0,104410.0,0.40878346]
[1762716060103,0.53817,104400.0,104390.0,0.76944]
[1762716060306,0.70482115,104400.0,104390.0,0.76944]
[1762716060498,0.84771913,104400.0,104390.0,0.76944]
[1762716061300,0.84771913,104400.0,104390.0,0.41264]
[1762716061301,0.84871913,104400.0,104390.0,0.41264]
[1762716062509,0.84871913,104400.0,104390.0,0.54555]
[1762716062705,0.84871913,104400.0,104390.0,0.41564]
[1762716062706,0.72800965,104400.0,104390.0,0.41564]
[1762716063107,0.84871913,104400.0,104390.0,0.41564]
[1762716063501,0.72800965,104400.0,104390.0,0.41564]
[1762716064011,0.68786933,104400.0,104390.0,0.54555]
[1762716064203,0.60165965,104400.0,104390.0,0.90635]
[1762716064406,0.27604279,104400.0,104390.0,0.90635]
[1762716065002,0.68786279,104400.0,104390.0,0.90635]
[1762716065806,0.27604279,104400.0,104390.0,0.90635]
[1762716066104,0.81421279,104400.0,104390.0,0.90635]
[1762716067912,0.79696997,104400.0,104390.0,0.90635]
[1762716069913,0.79696997,104400.0,104390.0,0.77644]
[1762716071321,0.79696997,104400.0,104390.0,0.90635]
[1762716071322,0.46104997,104400.0,104390.0,0.90635]
[1762716071522,0.67061997,104400.0,104390.0,0.90635]
[1762716073921,0.79696997,104400.0,104390.0,0.77644]
[1762716074507,0.72800965,104400.0,104390.0,0.41564]
[1762716074713,1.1577736,104400.0,104390.0,0.41564]
[1762716074912,1.1577736,104400.0,104390.0,0.007]
[1762716075112,0.53817,104390.0,104380.0,0.40878346]
[1762716075307,0.96794067,104390.0,104380.0,0.40878346]
[1762716075511,1.11073268,104390.0,104380.0,0.40878346]
[1762716075715,0.34523479,104420.0,104390.0,0.53855]
[1762716075916,0.34523479,104420.0,104410.0,0.3608]
[1762716076116,0.4880268,104420.0,104410.0,0.3608]
[1762716076522,0.31474083,104420.0,104410.0,0.3608]
[1762716077021,0.91474083,104420.0,104410.0,0.3608]
[1762716077319,0.91874083,104420.0,104410.0,0.3618]
[1762716078020,0.92174083,104420.0,104410.0,0.3618]
[1762716078223,1.28254083,104420.0,104400.0,0.36094346]
[1762716078523,0.68254083,104420.0,104400.0,0.49085346]
[1762716079018,0.75817374,104420.0,104400.0,0.49085346]
[1762716079323,0.75417374,104420.0,104400.0,0.49085346]
[1762716079520,0.75717374,104420.0,104400.0,0.49185346]
[1762716079722,0.76117374,104420.0,104400.0,0.49185346]
[1762716080626,0.76117374,104420.0,104400.0,0.69741346]
[1762716081316,0.76117374,104420.0,104400.0,0.90049346]
[1762716081723,0.65563339,104430.0,104410.0,0.3608]
[1762716082118,0.68790523,104430.0,104410.0,0.3608]
[1762716083023,0.69490523,104430.0,104410.0,0.3618]
[1762716083523,0.33410523,104430.0,104410.0,0.3618]
[1762716083916,0.41107164,104430.0,104410.0,0.3618]
[1762716084119,0.77187164,104430.0,104410.0,0.3618]
[1762716084313,0.77687164,104430.0,104410.0,0.3618]
[1762716086926,0.95015761,104430.0,104410.0,0.3618]
[1762716088515,1.0021434,104430.0,104410.0,0.3618]
[1762716088828,1.45865523,104430.0,104410.0,0.3618]
[1762716089826,1.23338347,104430.0,104410.0,0.3618]
[1762716095727,1.40583353,104430.0,104410.0,0.3618]
[1762716096833,1.04503353,104430.0,104410.0,0.3618]
[1762716100433,1.04503353,104430.0,104420.0,0.3608]
[1762716100629,2.4727195,104430.0,104410.0,0.001]
[1762716100834,0.25450524,104420.0,104410.0,0.001]
[1762716101134,0.4269553,104420.0,104410.0,0.001]
[1762716101329,0.57052588,104420.0,104410.0,0.001]
[1762716101528,0.57052588,104420.0,104400.0,0.99953346]
[1762716101722,0.25450524,104410.0,104400.0,0.99953346]
[1762716102229,0.51878066,104410.0,104400.0,0.99953346]
[1762716102736,0.58607176,104440.0,104400.0,0.99953346]
[1762716102935,0.58607176,104440.0,104420.0,0.3608]
[1762716103229,0.39826395,104430.0,104410.0,0.3608]
[1762716103432,0.12725262,104420.0,104410.0,0.3608]
[1762716103632,0.003,104420.0,104410.0,1.00039]
[1762716103839,0.1460873,104420.0,104410.0,1.12764262]
[1762716104939,0.01014346,104430.0,104420.0,0.63859]
[1762716105235,0.01253345,104450.0,104440.0,0.63859]
[1762716105236,0.14109345,104450.0,104440.0,0.63859]
[1762716105437,0.12856,104450.0,104440.0,1.48744262]
[1762716105638,0.27279112,104450.0,104440.0,1.48744262]
[1762716106137,0.1575177,104450.0,104440.0,1.36019]
[1762716106332,0.28477032,104450.0,104440.0,1.36019]
[1762716106529,0.28677032,104450.0,104440.0,1.36019]
[1762716106726,0.1595177,104450.0,104440.0,1.48744262]
[1762716106931,0.67287176,104460.0,104450.0,0.69936]
[1762716107135,0.80012438,104460.0,104450.0,1.06016]
[1762716107437,0.81677605,104460.0,104450.0,1.06016]
[1762716107632,0.59150429,104460.0,104450.0,1.06016]
[1762716107829,0.67756122,104460.0,104450.0,1.06016]
[1762716109433,0.45376122,104460.0,104450.0,1.06016]
[1762716109634,0.14390429,104460.0,104450.0,1.06016]
[1762716109837,0.22996122,104460.0,104450.0,1.06116]
[1762716110036,0.46863762,104460.0,104450.0,1.06316]
[1762716110439,0.69243762,104460.0,104450.0,1.06316]
[1762716110831,0.38258069,104460.0,104450.0,1.06316]
[1762716111031,0.46863762,104460.0,104450.0,1.06316]
[1762716111236,0.38258069,104460.0,104450.0,1.06316]
[1762716111537,0.46863762,104460.0,104450.0,1.06316]
[1762716112442,0.24336586,104460.0,104450.0,1.06316]
[1762716112644,0.15730893,104460.0,104450.0,1.06316]
[1762716113047,0.60490893,104460.0,104450.0,1.04134786]
[1762716113544,0.83018069,104460.0,104450.0,1.04134786]
[1762716114145,0.90666211,104460.0,104450.0,1.04134786]
[1762716115134,0.90666211,104460.0,104450.0,1.02576647]
[1762716115944,0.90666211,104460.0,104450.0,1.02476647]
[1762716116649,0.83018069,104460.0,104450.0,1.02476647]
[1762716116848,0.83218069,104460.0,104450.0,1.02276647]
[1762716117348,0.60690893,104460.0,104450.0,1.02276647]